[Event "*** Titled Tuesday Blitz AM"]
[Site "Chess.com"]
[Date "2020.01.07"]
[Round "4"]
[White "SavelijTartakover"]
[Black "Fh2411"]
[Result "1-0"]
[WhiteElo "2705"]
[BlackElo "2493"]
[TimeControl "180+2"]
[EndTime "9:53:03 PST"]
[Termination "SavelijTartakover won by resignation"]

1. d4 {[%clk 0:03:01.9]} 1... d5 {[%clk 0:03:00.7]} 2. c4 {[%clk 0:03:01.5]}
2... c6 {[%clk 0:03:02.2]} 3. Nf3 {[%clk 0:03:01.2]} 3... Nf6 {[%clk 0:03:03.4]}
4. Nc3 {[%clk 0:03:02.2]} 4... dxc4 {[%clk 0:03:04.5]} 5. a4 {[%clk 0:03:02.4]}
5... Bf5 {[%clk 0:03:05.7]} 6. e3 {[%clk 0:03:03.5]} 6... e6 {[%clk 0:03:06.9]}
7. Bxc4 {[%clk 0:03:04.2]} 7... Bb4 {[%clk 0:03:07.9]} 8. O-O {[%clk 0:03:04.5]}
8... Nbd7 {[%clk 0:03:09.1]} 9. Qe2 {[%clk 0:03:05.3]} 9... Bg6 {[%clk
0:03:10.1]} 10. e4 {[%clk 0:03:01.6]} 10... O-O {[%clk 0:03:10.9]} 11. Bd3
{[%clk 0:03:01.2]} 11... Bh5 {[%clk 0:03:03.8]} 12. e5 {[%clk 0:02:58.8]} 12...
Nd5 {[%clk 0:03:02.6]} 13. Nxd5 {[%clk 0:02:59.2]} 13... cxd5 {[%clk 0:03:03.8]}
14. Qe3 {[%clk 0:03:00.1]} 14... Be7 {[%clk 0:02:32.2]} 15. Ng5 {[%clk
0:02:50.6]} 15... Bxg5 {[%clk 0:02:29.7]} 16. Qxg5 {[%clk 0:02:50.6]} 16... Qxg5
{[%clk 0:02:31.3]} 17. Bxg5 {[%clk 0:02:51.4]} 17... Bg6 {[%clk 0:02:26.2]} 18.
Be2 {[%clk 0:02:50.5]} 18... Rfc8 {[%clk 0:02:26.1]} 19. Rfc1 {[%clk 0:02:49.2]}
19... a6 {[%clk 0:02:06.2]} 20. a5 {[%clk 0:02:44.7]} 20... Kf8 {[%clk
0:01:59.1]} 21. b4 {[%clk 0:02:37.1]} 21... f6 {[%clk 0:01:42]} 22. exf6 {[%clk
0:02:34.8]} 22... gxf6 {[%clk 0:01:43.9]} 23. Bd2 {[%clk 0:02:33.5]} 23... Kf7
{[%clk 0:01:28.8]} 24. b5 {[%clk 0:02:31.5]} 24... axb5 {[%clk 0:01:27.4]} 25.
Bxb5 {[%clk 0:02:33.4]} 25... Nf8 {[%clk 0:01:27.1]} 26. f3 {[%clk 0:02:25.5]}
26... e5 {[%clk 0:01:24.5]} 27. Rc5 {[%clk 0:02:12.3]} 27... Ne6 {[%clk
0:01:15.2]} 28. Rxd5 {[%clk 0:02:07]} 28... Nxd4 {[%clk 0:01:12.2]} 29. Rd7+
{[%clk 0:02:02.4]} 29... Ke6 {[%clk 0:01:12.9]} 30. Rxb7 {[%clk 0:02:02.5]}
30... Nxb5 {[%clk 0:01:05.5]} 31. Rxb5 {[%clk 0:02:00.7]} 31... Bd3 {[%clk
0:01:07]} 32. Rb6+ {[%clk 0:01:59.2]} 32... Kf7 {[%clk 0:01:05.3]} 33. Ra3
{[%clk 0:01:57]} 33... Ba6 {[%clk 0:01:05]} 34. Rc3 {[%clk 0:01:55.5]} 34...
Rxc3 {[%clk 0:01:04.1]} 35. Bxc3 {[%clk 0:01:57.4]} 35... Bd3 {[%clk 0:00:54.9]}
36. Rd6 {[%clk 0:01:51.7]} 36... Bb5 {[%clk 0:00:49.6]} 37. Rd5 {[%clk 0:01:52]}
37... Bc4 {[%clk 0:00:48.2]} 38. Rc5 {[%clk 0:01:51.8]} 38... Ba6 {[%clk
0:00:46.2]} 39. Rc6 {[%clk 0:01:46.5]} 39... Bb5 {[%clk 0:00:46.5]} 40. Rc7+
{[%clk 0:01:44.5]} 40... Kg6 {[%clk 0:00:46.9]} 41. Kf2 {[%clk 0:01:45.9]} 41...
h5 {[%clk 0:00:37.7]} 42. Ke3 {[%clk 0:01:46.6]} 42... Rd8 {[%clk 0:00:38.1]}
43. Rc5 {[%clk 0:01:36.5]} 43... Ba6 {[%clk 0:00:36.7]} 44. Kf2 {[%clk 0:01:36]}
44... Kf5 {[%clk 0:00:33.9]} 45. Kg3 {[%clk 0:01:33.5]} 45... Rg8+ {[%clk
0:00:33]} 46. Kf2 {[%clk 0:01:32.9]} 46... Rd8 {[%clk 0:00:31.7]} 47. Rc6 {[%clk
0:01:31]} 47... Bb5 {[%clk 0:00:29.9]} 48. Rb6 {[%clk 0:01:31.6]} 48... Bd3
{[%clk 0:00:31.2]} 49. h3 {[%clk 0:01:28.3]} 49... h4 {[%clk 0:00:31.7]} 50. Rb4
{[%clk 0:01:26.1]} 50... Rh8 {[%clk 0:00:28.9]} 51. Ke3 {[%clk 0:01:22.8]} 51...
Bf1 {[%clk 0:00:29]} 52. Kf2 {[%clk 0:01:22.7]} 52... Bd3 {[%clk 0:00:30.1]} 53.
Be1 {[%clk 0:01:23.5]} 53... Ba6 {[%clk 0:00:14.8]} 54. Kg1 {[%clk 0:01:23.2]}
54... Rc8 {[%clk 0:00:10.5]} 55. Bxh4 {[%clk 0:01:20.6]} 55... Rc1+ {[%clk
0:00:11.5]} 56. Kh2 {[%clk 0:01:20.6]} 56... Bc4 {[%clk 0:00:06.9]} 57. Rb6
{[%clk 0:01:18.5]} 57... Kf4 {[%clk 0:00:08.2]} 58. Rxf6+ {[%clk 0:01:17.1]}
58... Ke3 {[%clk 0:00:09.6]} 59. Bg5+ {[%clk 0:01:18.2]} 1-0

[Event "*** Titled Tuesday Blitz AM"]
[Site "Chess.com"]
[Date "2020.01.07"]
[Round "4"]
[White "2nd_life"]
[Black "GremioPrudente"]
[Result "1-0"]
[WhiteElo "2491"]
[BlackElo "2260"]
[TimeControl "180+2"]
[EndTime "9:53:22 PST"]
[Termination "2nd_life won on time"]

1. e4 {[%clk 0:03:01.9]} 1... e6 {[%clk 0:02:21.4]} 2. d4 {[%clk 0:03:00.1]}
2... d5 {[%clk 0:02:21.4]} 3. Nc3 {[%clk 0:03:00.2]} 3... Nf6 {[%clk 0:02:22.3]}
4. Bg5 {[%clk 0:03:00.2]} 4... Be7 {[%clk 0:02:22.3]} 5. e5 {[%clk 0:03:00.3]}
5... Nfd7 {[%clk 0:02:23.4]} 6. h4 {[%clk 0:02:58.7]} 6... Bxg5 {[%clk 0:02:20]}
7. hxg5 {[%clk 0:02:59]} 7... Qxg5 {[%clk 0:02:21.6]} 8. Nh3 {[%clk 0:02:55.4]}
8... Qe7 {[%clk 0:02:22.1]} 9. Nf4 {[%clk 0:02:39.7]} 9... Nc6 {[%clk
0:02:04.4]} 10. Qg4 {[%clk 0:02:04.2]} 10... g6 {[%clk 0:02:03.1]} 11. O-O-O
{[%clk 0:02:00.6]} 11... h5 {[%clk 0:01:58.8]} 12. Qf3 {[%clk 0:01:48.9]} 12...
Nb6 {[%clk 0:01:59.9]} 13. Bb5 {[%clk 0:01:25.9]} 13... Bd7 {[%clk 0:01:52.2]}
14. Bxc6 {[%clk 0:01:03.7]} 14... Bxc6 {[%clk 0:01:52.1]} 15. Nd3 {[%clk
0:01:04.2]} 15... O-O-O {[%clk 0:01:44.8]} 16. Kb1 {[%clk 0:01:00.2]} 16... Nc4
{[%clk 0:01:39.7]} 17. b3 {[%clk 0:00:56.7]} 17... Nb6 {[%clk 0:01:12.7]} 18.
Nc5 {[%clk 0:00:45.4]} 18... Kb8 {[%clk 0:01:06.8]} 19. Qf4 {[%clk 0:00:40.3]}
19... Nd7 {[%clk 0:01:01.8]} 20. Nxd7+ {[%clk 0:00:38.9]} 20... Bxd7 {[%clk
0:01:00.1]} 21. Ne2 {[%clk 0:00:35.7]} 21... g5 {[%clk 0:00:53.4]} 22. Qe3
{[%clk 0:00:33.5]} 22... Rc8 {[%clk 0:00:42.9]} 23. f4 {[%clk 0:00:25.3]} 23...
g4 {[%clk 0:00:42.3]} 24. g3 {[%clk 0:00:25]} 24... h4 {[%clk 0:00:39]} 25. gxh4
{[%clk 0:00:22.5]} 25... Rxh4 {[%clk 0:00:40]} 26. Rxh4 {[%clk 0:00:23.6]} 26...
Qxh4 {[%clk 0:00:41]} 27. Rg1 {[%clk 0:00:24.7]} 27... Rg8 {[%clk 0:00:38.9]}
28. a4 {[%clk 0:00:23]} 28... f5 {[%clk 0:00:30.5]} 29. exf6 {[%clk 0:00:20.9]}
29... Qxf6 {[%clk 0:00:31.2]} 30. Kb2 {[%clk 0:00:16.3]} 30... a6 {[%clk
0:00:32.4]} 31. Rg3 {[%clk 0:00:11.4]} 31... Qf5 {[%clk 0:00:32.9]} 32. Qe5
{[%clk 0:00:10.7]} 32... Qxe5 {[%clk 0:00:33.4]} 33. fxe5 {[%clk 0:00:10.3]}
33... b6 {[%clk 0:00:30.1]} 34. Nf4 {[%clk 0:00:10]} 34... c5 {[%clk 0:00:22]}
35. c3 {[%clk 0:00:10.6]} 35... Kc7 {[%clk 0:00:22.9]} 36. Nh5 {[%clk
0:00:11.3]} 36... Rg6 {[%clk 0:00:21.8]} 37. Nf6 {[%clk 0:00:11.9]} 37... cxd4
{[%clk 0:00:21.8]} 38. cxd4 {[%clk 0:00:12.6]} 38... b5 {[%clk 0:00:22.5]} 39.
a5 {[%clk 0:00:12.5]} 39... b4 {[%clk 0:00:22.4]} 40. Kc2 {[%clk 0:00:06.7]}
40... Bb5 {[%clk 0:00:23.3]} 41. Kd2 {[%clk 0:00:07]} 41... Bf1 {[%clk
0:00:22.4]} 42. Ke3 {[%clk 0:00:07.4]} 42... Bh3 {[%clk 0:00:22.1]} 43. Kf4
{[%clk 0:00:08.5]} 43... Kc6 {[%clk 0:00:19.8]} 44. Rg1 {[%clk 0:00:08.8]} 44...
Kb5 {[%clk 0:00:19.8]} 45. Rc1 {[%clk 0:00:09.6]} 45... Kxa5 {[%clk 0:00:17.6]}
46. Nd7 {[%clk 0:00:10.7]} 1-0

[Event "*** Titled Tuesday Blitz AM"]
[Site "Chess.com"]
[Date "2020.01.07"]
[Round "4"]
[White "NZT72"]
[Black "Atakishiyev04"]
[Result "1-0"]
[WhiteElo "2536"]
[BlackElo "2686"]
[TimeControl "180+2"]
[EndTime "9:53:24 PST"]
[Termination "NZT72 won by checkmate"]

1. c4 {[%clk 0:03:01.9]} 1... Nf6 {[%clk 0:02:51.6]} 2. g3 {[%clk 0:03:02.6]}
2... e5 {[%clk 0:02:51]} 3. Bg2 {[%clk 0:03:03.4]} 3... c6 {[%clk 0:02:34.7]} 4.
d4 {[%clk 0:03:04]} 4... exd4 {[%clk 0:02:35.3]} 5. Qxd4 {[%clk 0:03:04.6]} 5...
d5 {[%clk 0:02:36.7]} 6. Nf3 {[%clk 0:03:03]} 6... Be6 {[%clk 0:02:36.9]} 7.
cxd5 {[%clk 0:02:56.1]} 7... cxd5 {[%clk 0:02:37]} 8. O-O {[%clk 0:02:56.3]}
8... Nc6 {[%clk 0:02:38]} 9. Qa4 {[%clk 0:02:57]} 9... Bc5 {[%clk 0:02:39.5]}
10. Nbd2 {[%clk 0:02:08.8]} 10... O-O {[%clk 0:02:34.4]} 11. Nb3 {[%clk
0:02:07.1]} 11... Bb6 {[%clk 0:02:27.9]} 12. Nbd4 {[%clk 0:02:02.4]} 12... Bd7
{[%clk 0:01:54.8]} 13. Qd1 {[%clk 0:02:02.7]} 13... Ne4 {[%clk 0:01:53.2]} 14.
Be3 {[%clk 0:01:57.2]} 14... Qf6 {[%clk 0:01:50.7]} 15. Rc1 {[%clk 0:01:50.6]}
15... Rfe8 {[%clk 0:01:46.3]} 16. a3 {[%clk 0:01:40.1]} 16... Rac8 {[%clk
0:01:43]} 17. Qd3 {[%clk 0:01:23.9]} 17... Bg4 {[%clk 0:01:34.6]} 18. Nxc6
{[%clk 0:01:04.5]} 18... bxc6 {[%clk 0:01:33.8]} 19. Bxb6 {[%clk 0:00:53.6]}
19... axb6 {[%clk 0:01:35.7]} 20. b4 {[%clk 0:00:52.5]} 20... Nd6 {[%clk
0:01:27.3]} 21. h3 {[%clk 0:00:21]} 21... Bf5 {[%clk 0:01:26.8]} 22. Qd4 {[%clk
0:00:22]} 22... Qh6 {[%clk 0:01:18.6]} 23. g4 {[%clk 0:00:16.3]} 23... Bd7
{[%clk 0:00:45.3]} 24. Qxb6 {[%clk 0:00:17.2]} 24... Rxe2 {[%clk 0:00:43.4]} 25.
Rce1 {[%clk 0:00:16.6]} 25... Rxe1 {[%clk 0:00:34.2]} 26. Rxe1 {[%clk
0:00:17.7]} 26... Ne4 {[%clk 0:00:32.7]} 27. a4 {[%clk 0:00:16.8]} 27... Qd6
{[%clk 0:00:32.2]} 28. Qd4 {[%clk 0:00:10.2]} 28... Re8 {[%clk 0:00:24.3]} 29.
Nd2 {[%clk 0:00:06.8]} 29... Nf6 {[%clk 0:00:14.1]} 30. Rxe8+ {[%clk 0:00:08.7]}
30... Nxe8 {[%clk 0:00:16]} 31. a5 {[%clk 0:00:09.6]} 31... Nc7 {[%clk
0:00:16.5]} 32. Nb3 {[%clk 0:00:10.3]} 32... Nb5 {[%clk 0:00:15.8]} 33. Qc5
{[%clk 0:00:11.4]} 33... Qe5 {[%clk 0:00:15.9]} 34. a6 {[%clk 0:00:09.6]} 34...
Qb8 {[%clk 0:00:12.6]} 35. Na5 {[%clk 0:00:09.8]} 35... Na7 {[%clk 0:00:12.4]}
36. Qe7 {[%clk 0:00:08.9]} 36... Be6 {[%clk 0:00:11.4]} 37. Qb7 {[%clk
0:00:09.8]} 37... Qf4 {[%clk 0:00:05.3]} 38. Qxa7 {[%clk 0:00:10.6]} 38... Qc1+
{[%clk 0:00:06.3]} 39. Bf1 {[%clk 0:00:11.9]} 39... h5 {[%clk 0:00:07.7]} 40.
Qb8+ {[%clk 0:00:13.1]} 40... Kh7 {[%clk 0:00:08.7]} 41. a7 {[%clk 0:00:14.5]}
41... hxg4 {[%clk 0:00:08.2]} 42. a8=Q {[%clk 0:00:15.9]} 42... gxh3 {[%clk
0:00:09.6]} 43. Qh8+ {[%clk 0:00:17]} 43... Kg6 {[%clk 0:00:11.1]} 44. Qab8
{[%clk 0:00:16.9]} 44... h2+ {[%clk 0:00:09.8]} 45. Qhxh2 {[%clk 0:00:17.4]}
45... Bf5 {[%clk 0:00:09.2]} 46. Qbg3+ {[%clk 0:00:18.3]} 46... Kf6 {[%clk
0:00:10.5]} 47. Qe5+ {[%clk 0:00:18.4]} 47... Kg6 {[%clk 0:00:10.6]} 48. Qhg3+
{[%clk 0:00:19.6]} 48... Kh5 {[%clk 0:00:09]} 49. Qxf5+ {[%clk 0:00:20.2]} 49...
Kh6 {[%clk 0:00:07.5]} 50. Qfh3# {[%clk 0:00:21]} 1-0

[Event "*** Titled Tuesday Blitz AM"]
[Site "Chess.com"]
[Date "2020.01.07"]
[Round "4"]
[White "hansen"]
[Black "Zubrrr"]
[Result "0-1"]
[WhiteElo "2899"]
[BlackElo "2741"]
[TimeControl "180+2"]
[EndTime "9:53:34 PST"]
[Termination "Zubrrr won by resignation"]

1. c4 {[%clk 0:02:49.7]} 1... f5 {[%clk 0:03:00.2]} 2. Nc3 {[%clk 0:02:44.8]}
2... Nf6 {[%clk 0:03:01.5]} 3. Nf3 {[%clk 0:02:45.2]} 3... g6 {[%clk 0:03:01.3]}
4. g3 {[%clk 0:02:46.5]} 4... Bg7 {[%clk 0:03:02.6]} 5. Bg2 {[%clk 0:02:48.2]}
5... O-O {[%clk 0:03:04.1]} 6. O-O {[%clk 0:02:47.9]} 6... d6 {[%clk 0:03:03.7]}
7. d4 {[%clk 0:02:38.4]} 7... Qe8 {[%clk 0:03:04.5]} 8. d5 {[%clk 0:02:35.3]}
8... a5 {[%clk 0:03:05]} 9. Nd4 {[%clk 0:02:35.1]} 9... Na6 {[%clk 0:03:05.7]}
10. b3 {[%clk 0:02:33.6]} 10... Bd7 {[%clk 0:02:47.3]} 11. Bb2 {[%clk 0:02:33]}
11... Nc5 {[%clk 0:02:42.1]} 12. e3 {[%clk 0:02:30.5]} 12... g5 {[%clk
0:01:46.9]} 13. f4 {[%clk 0:02:26.1]} 13... Ng4 {[%clk 0:01:17.3]} 14. Qd2
{[%clk 0:02:27.1]} 14... Qh5 {[%clk 0:01:11.4]} 15. h3 {[%clk 0:02:27.5]} 15...
Nf6 {[%clk 0:01:08.5]} 16. Rae1 {[%clk 0:01:34.4]} 16... Nfe4 {[%clk 0:01:07.4]}
17. Nxe4 {[%clk 0:01:08.5]} 17... Nxe4 {[%clk 0:01:08.2]} 18. Qc2 {[%clk
0:00:37.4]} 18... Nxg3 {[%clk 0:01:08.1]} 19. Rf2 {[%clk 0:00:38.4]} 19... Bf6
{[%clk 0:00:44.8]} 20. Bf3 {[%clk 0:00:36]} 20... Qh4 {[%clk 0:00:35]} 21. fxg5
{[%clk 0:00:31.3]} 21... Bxg5 {[%clk 0:00:29.4]} 22. Rg2 {[%clk 0:00:31.3]}
22... Qxh3 {[%clk 0:00:22]} 23. Kf2 {[%clk 0:00:13.8]} 23... Bh4 {[%clk
0:00:17.7]} 24. Reg1 {[%clk 0:00:12.2]} 24... Kf7 {[%clk 0:00:18.4]} 25. Ne6
{[%clk 0:00:07.4]} 25... Rg8 {[%clk 0:00:13.1]} 26. Nf4 {[%clk 0:00:07.3]} 26...
Nh5+ {[%clk 0:00:11.2]} 27. Ke2 {[%clk 0:00:04.8]} 27... Nxf4+ {[%clk
0:00:12.2]} 28. exf4 {[%clk 0:00:05.9]} 28... Rxg2+ {[%clk 0:00:12.2]} 29. Rxg2
{[%clk 0:00:07.4]} 29... Rg8 {[%clk 0:00:11.5]} 30. Rxg8 {[%clk 0:00:04.6]}
30... Kxg8 {[%clk 0:00:12.5]} 31. Ke3 {[%clk 0:00:03.9]} 31... Qg3 {[%clk
0:00:09.8]} 32. Bc3 {[%clk 0:00:04]} 32... b6 {[%clk 0:00:09]} 33. a3 {[%clk
0:00:05.2]} 33... Be8 {[%clk 0:00:09.2]} 34. Qg2 {[%clk 0:00:02.9]} 34... Qxg2
{[%clk 0:00:09.2]} 35. Bxg2 {[%clk 0:00:04.3]} 35... Bh5 {[%clk 0:00:09.3]} 36.
b4 {[%clk 0:00:05.4]} 36... axb4 {[%clk 0:00:09.9]} 37. axb4 {[%clk 0:00:07.3]}
37... Kf7 {[%clk 0:00:11.1]} 38. c5 {[%clk 0:00:07.4]} 38... bxc5 {[%clk
0:00:11.4]} 39. bxc5 {[%clk 0:00:09.3]} 39... dxc5 {[%clk 0:00:11.7]} 40. Be5
{[%clk 0:00:10.4]} 40... Bf6 {[%clk 0:00:12.3]} 41. Bxc7 {[%clk 0:00:10.5]}
41... Bd4+ {[%clk 0:00:13.8]} 42. Kd3 {[%clk 0:00:12]} 42... Bg4 {[%clk
0:00:14.2]} 43. Be5 {[%clk 0:00:07.1]} 43... Bf2 {[%clk 0:00:14.5]} 44. d6
{[%clk 0:00:04.1]} 44... exd6 {[%clk 0:00:15.3]} 45. Bxd6 {[%clk 0:00:06]} 45...
h5 {[%clk 0:00:16.4]} 46. Bd5+ {[%clk 0:00:07.4]} 46... Kg6 {[%clk 0:00:16.8]}
47. Bc6 {[%clk 0:00:07.5]} 47... h4 {[%clk 0:00:17.9]} 48. Be8+ {[%clk
0:00:05.8]} 48... Kf6 {[%clk 0:00:18.7]} 49. Kc4 {[%clk 0:00:04.9]} 49... Bf3
{[%clk 0:00:17.9]} 50. Be5+ {[%clk 0:00:02.8]} 50... Ke7 {[%clk 0:00:17.2]} 51.
Bg6 {[%clk 0:00:04]} 51... h3 {[%clk 0:00:18.1]} 52. Bxf5 {[%clk 0:00:02.3]}
52... h2 {[%clk 0:00:19.1]} 0-1

[Event "*** Titled Tuesday Blitz AM"]
[Site "Chess.com"]
[Date "2020.01.07"]
[Round "4"]
[White "enkhtuul"]
[Black "Svet99"]
[Result "1-0"]
[WhiteElo "2342"]
[BlackElo "2139"]
[TimeControl "180+2"]
[EndTime "9:53:40 PST"]
[Termination "enkhtuul won by resignation"]

1. d4 {[%clk 0:03:01.7]} 1... Nf6 {[%clk 0:02:58.7]} 2. Nf3 {[%clk 0:03:02.2]}
2... e6 {[%clk 0:02:59.4]} 3. g3 {[%clk 0:03:02.1]} 3... b6 {[%clk 0:02:58.2]}
4. Bg2 {[%clk 0:03:03.4]} 4... Bb7 {[%clk 0:02:59.6]} 5. O-O {[%clk 0:03:04.6]}
5... Be7 {[%clk 0:02:57.5]} 6. Bg5 {[%clk 0:03:05.5]} 6... O-O {[%clk
0:02:57.9]} 7. Bxf6 {[%clk 0:03:06.8]} 7... Bxf6 {[%clk 0:02:58.5]} 8. Qd3
{[%clk 0:03:08.7]} 8... d5 {[%clk 0:02:59.3]} 9. Nbd2 {[%clk 0:03:08.8]} 9...
Nd7 {[%clk 0:03:00.2]} 10. Rfe1 {[%clk 0:03:04.6]} 10... c5 {[%clk 0:03:00]} 11.
c3 {[%clk 0:03:03.9]} 11... Be7 {[%clk 0:02:53.3]} 12. e4 {[%clk 0:03:04.1]}
12... dxe4 {[%clk 0:02:52.5]} 13. Nxe4 {[%clk 0:03:05]} 13... cxd4 {[%clk
0:02:52.8]} 14. cxd4 {[%clk 0:02:57.4]} 14... Nf6 {[%clk 0:02:52.9]} 15. Nxf6+
{[%clk 0:02:49.9]} 15... Bxf6 {[%clk 0:02:54.8]} 16. Ng5 {[%clk 0:02:50.5]}
16... Bxg5 {[%clk 0:02:54.8]} 17. Bxb7 {[%clk 0:02:51.2]} 17... Rb8 {[%clk
0:02:55.9]} 18. Be4 {[%clk 0:02:52]} 18... g6 {[%clk 0:02:55.3]} 19. h4 {[%clk
0:02:51.8]} 19... Bf6 {[%clk 0:02:55.8]} 20. Rad1 {[%clk 0:02:53.2]} 20... Qd6
{[%clk 0:02:55.5]} 21. h5 {[%clk 0:02:53.8]} 21... Rfd8 {[%clk 0:02:54]} 22. d5
{[%clk 0:02:50.7]} 22... exd5 {[%clk 0:02:54]} 23. Bxd5 {[%clk 0:02:51.7]} 23...
Kg7 {[%clk 0:02:52.8]} 24. Qe3 {[%clk 0:02:40]} 24... Qc5 {[%clk 0:02:50.9]} 25.
h6+ {[%clk 0:02:40.2]} 25... Kf8 {[%clk 0:02:49.8]} 26. Qf3 {[%clk 0:02:39.9]}
26... Rd6 {[%clk 0:02:45.1]} 27. Bb3 {[%clk 0:02:22.3]} 27... Rxd1 {[%clk
0:02:29.9]} 28. Rxd1 {[%clk 0:02:22.2]} 28... Qe7 {[%clk 0:02:28.4]} 29. Kg2
{[%clk 0:02:11.8]} 29... Re8 {[%clk 0:02:27.5]} 30. Ba4 {[%clk 0:01:46.1]} 30...
Rd8 {[%clk 0:02:25.1]} 31. Rxd8+ {[%clk 0:00:58.5]} 31... Qxd8 {[%clk 0:02:27]}
32. b3 {[%clk 0:00:53.4]} 32... Bg5 {[%clk 0:02:21.8]} 33. Qb7 {[%clk
0:00:45.4]} 33... a5 {[%clk 0:02:19.3]} 34. Bc6 {[%clk 0:00:41.2]} 34... Bxh6
{[%clk 0:02:19]} 35. Bd5 {[%clk 0:00:42.2]} 35... Qf6 {[%clk 0:02:18.9]} 36. Bc6
{[%clk 0:00:35.5]} 36... Bd2 {[%clk 0:02:17.5]} 37. Qxb6 {[%clk 0:00:32.7]}
37... Bb4 {[%clk 0:02:18.2]} 38. Qb8+ {[%clk 0:00:31]} 38... Kg7 {[%clk
0:02:18.3]} 39. Bf3 {[%clk 0:00:31.6]} 39... Qd4 {[%clk 0:02:15.8]} 40. Qb5
{[%clk 0:00:26.2]} 40... Bc5 {[%clk 0:02:15.4]} 41. Qe2 {[%clk 0:00:26.8]} 41...
Bd6 {[%clk 0:02:11.1]} 42. Bc6 {[%clk 0:00:24.7]} 42... Qe5 {[%clk 0:02:08.9]}
43. Qf3 {[%clk 0:00:22.5]} 43... Bc5 {[%clk 0:02:06.8]} 44. Bd5 {[%clk
0:00:22.4]} 44... Qf6 {[%clk 0:02:06.7]} 45. Qe2 {[%clk 0:00:20.3]} 45... Qd4
{[%clk 0:02:06.1]} 46. Qf3 {[%clk 0:00:19.3]} 46... f6 {[%clk 0:02:04.8]} 47.
Bc4 {[%clk 0:00:19.3]} 47... g5 {[%clk 0:02:03.3]} 48. Qb7+ {[%clk 0:00:19.3]}
48... Kh6 {[%clk 0:01:59.4]} 49. Qf3 {[%clk 0:00:19.3]} 49... g4 {[%clk
0:01:56.5]} 50. Qe2 {[%clk 0:00:20.4]} 50... Kg5 {[%clk 0:01:55.8]} 51. Be6
{[%clk 0:00:20.8]} 51... h5 {[%clk 0:01:55.1]} 52. Qe1 {[%clk 0:00:20.2]} 52...
h4 {[%clk 0:01:42.6]} 53. Qc1+ {[%clk 0:00:21.2]} 53... Kg6 {[%clk 0:01:38.9]}
54. Qc2+ {[%clk 0:00:19.9]} 54... Kg7 {[%clk 0:01:36.6]} 55. gxh4 {[%clk
0:00:21.2]} 55... Qf4 {[%clk 0:01:32.6]} 56. Qf5 {[%clk 0:00:20.2]} 56... Qd4
{[%clk 0:01:12.1]} 57. Qxg4+ {[%clk 0:00:20.3]} 57... Qxg4+ {[%clk 0:01:12.4]}
58. Bxg4 {[%clk 0:00:22.2]} 58... Kh6 {[%clk 0:01:13.5]} 59. f4 {[%clk
0:00:22.8]} 59... Bd6 {[%clk 0:01:13.2]} 60. Kf3 {[%clk 0:00:23.8]} 60... Kg6
{[%clk 0:01:13.7]} 61. h5+ {[%clk 0:00:24.7]} 61... Kh6 {[%clk 0:01:14.3]} 62.
Ke4 {[%clk 0:00:26]} 62... Bb4 {[%clk 0:01:14.2]} 63. Kf5 {[%clk 0:00:26.4]}
63... Bc3 {[%clk 0:01:15.2]} 64. a3 {[%clk 0:00:27.6]} 64... Bb2 {[%clk
0:01:12.4]} 65. b4 {[%clk 0:00:28.6]} 65... axb4 {[%clk 0:01:10.7]} 66. axb4
{[%clk 0:00:29.6]} 66... Bd4 {[%clk 0:01:11.6]} 67. b5 {[%clk 0:00:30.6]} 67...
Bb6 {[%clk 0:01:07.9]} 68. Kxf6 {[%clk 0:00:31.8]} 1-0

[Event "*** Titled Tuesday Blitz AM"]
[Site "Chess.com"]
[Date "2020.01.07"]
[Round "4"]
[White "mazetofonias"]
[Black "sergeikim"]
[Result "1-0"]
[WhiteElo "2694"]
[BlackElo "2444"]
[TimeControl "180+2"]
[EndTime "9:53:41 PST"]
[Termination "mazetofonias won on time"]

1. d4 {[%clk 0:02:54]} 1... Nf6 {[%clk 0:02:59.9]} 2. c4 {[%clk 0:02:55]} 2...
g6 {[%clk 0:03:00.9]} 3. Nc3 {[%clk 0:02:55.2]} 3... Bg7 {[%clk 0:03:01.9]} 4.
e4 {[%clk 0:02:56.7]} 4... d6 {[%clk 0:03:02.6]} 5. Be2 {[%clk 0:02:58]} 5...
O-O {[%clk 0:03:03.3]} 6. Be3 {[%clk 0:02:58]} 6... e5 {[%clk 0:03:03.1]} 7. d5
{[%clk 0:02:58.3]} 7... a5 {[%clk 0:03:02.8]} 8. g4 {[%clk 0:02:59.5]} 8... Na6
{[%clk 0:03:03.5]} 9. g5 {[%clk 0:02:59.3]} 9... Ne8 {[%clk 0:03:03.6]} 10. h4
{[%clk 0:03:01]} 10... Nc5 {[%clk 0:03:03.5]} 11. h5 {[%clk 0:03:01.3]} 11...
Bd7 {[%clk 0:03:03.8]} 12. hxg6 {[%clk 0:02:54.7]} 12... fxg6 {[%clk 0:03:02.4]}
13. Bxc5 {[%clk 0:02:50.6]} 13... dxc5 {[%clk 0:03:02.4]} 14. Bg4 {[%clk
0:02:52.2]} 14... Nd6 {[%clk 0:02:54.1]} 15. Bxd7 {[%clk 0:02:51.3]} 15... Qxd7
{[%clk 0:02:54]} 16. Qd3 {[%clk 0:02:40.8]} 16... a4 {[%clk 0:02:38.6]} 17. f3
{[%clk 0:02:36.9]} 17... Qe7 {[%clk 0:02:25]} 18. Nh3 {[%clk 0:02:36.6]} 18...
Rf7 {[%clk 0:02:25.8]} 19. O-O-O {[%clk 0:02:36.8]} 19... Raf8 {[%clk
0:02:25.3]} 20. Rdf1 {[%clk 0:02:37.9]} 20... h5 {[%clk 0:02:17]} 21. gxh6
{[%clk 0:02:27]} 21... Bxh6+ {[%clk 0:02:17.4]} 22. Kb1 {[%clk 0:02:27.6]} 22...
Rg7 {[%clk 0:02:11.3]} 23. Nxa4 {[%clk 0:02:26.8]} 23... b6 {[%clk 0:02:07.4]}
24. Nc3 {[%clk 0:02:27.6]} 24... Qd7 {[%clk 0:01:58.9]} 25. Nf2 {[%clk
0:02:28.2]} 25... Bf4 {[%clk 0:01:58.1]} 26. Ng4 {[%clk 0:02:28.4]} 26... Bg5
{[%clk 0:01:49.8]} 27. Qe2 {[%clk 0:02:22.9]} 27... Bf4 {[%clk 0:01:46.4]} 28.
Nb5 {[%clk 0:02:20.2]} 28... Rff7 {[%clk 0:01:34.9]} 29. Rh3 {[%clk 0:02:14.5]}
29... Qe7 {[%clk 0:01:29.8]} 30. Rfh1 {[%clk 0:02:13.3]} 30... Rh7 {[%clk
0:01:30.9]} 31. Nxd6 {[%clk 0:02:12.8]} 31... cxd6 {[%clk 0:01:29.9]} 32. Qg2
{[%clk 0:02:09.8]} 32... Qg5 {[%clk 0:01:16.3]} 33. Rxh7 {[%clk 0:01:56]} 33...
Rxh7 {[%clk 0:01:16.2]} 34. Rxh7 {[%clk 0:01:56.8]} 34... Kxh7 {[%clk
0:01:16.3]} 35. Qh1+ {[%clk 0:01:57.4]} 35... Kg7 {[%clk 0:01:16.1]} 36. Kc2
{[%clk 0:01:55.9]} 36... Bd2 {[%clk 0:01:05.7]} 37. Qg2 {[%clk 0:01:52.5]} 37...
Ba5 {[%clk 0:01:00.7]} 38. Qe2 {[%clk 0:01:20.7]} 38... Qf4 {[%clk 0:00:47.7]}
39. a3 {[%clk 0:01:18.4]} 39... Qg3 {[%clk 0:00:43.2]} 40. Kb3 {[%clk
0:01:01.6]} 40... Qg1 {[%clk 0:00:39.6]} 41. Ka4 {[%clk 0:00:54.2]} 41... Qb1
{[%clk 0:00:26]} 42. Kb5 {[%clk 0:00:47]} 42... Qa2 {[%clk 0:00:20.6]} 43. Qc2
{[%clk 0:00:47.1]} 43... Qa1 {[%clk 0:00:17.9]} 44. Nf2 {[%clk 0:00:24.9]} 44...
Qf1 {[%clk 0:00:14.2]} 45. Nd3 {[%clk 0:00:25]} 45... Qxf3 {[%clk 0:00:13.2]}
46. b4 {[%clk 0:00:26.5]} 46... Qxe4 {[%clk 0:00:07.7]} 47. bxa5 {[%clk
0:00:26.8]} 47... bxa5 {[%clk 0:00:08.7]} 48. Kxa5 {[%clk 0:00:27.9]} 48... Qd4
{[%clk 0:00:09.7]} 49. Nf2 {[%clk 0:00:26.7]} 49... Qa1 {[%clk 0:00:06]} 50. a4
{[%clk 0:00:26.7]} 50... Qa3 {[%clk 0:00:04.2]} 51. Qd2 {[%clk 0:00:16.2]} 1-0